Workbook

Sheet Лист1
H6: Температура поверхностей расчитана при нормативном утеплениее по СП 50 и температуре наружного воздуха -39 | P6: Температура поверхностей расчитана для типовой застройки прошлого века и температуре наружного воздуха -39
K7: Нормируемая температура воздуха +21 Нормируемая результирующая температура +20
I9: Помещение в середине здания | K9: Угловое помещение | M9: Угловое помещение на последнем этаже | Q9: Помещение в середине здания | S9: Угловое помещение | U9: Угловое помещение на последнем этаже
I10: S, м.кв | J10: T, ⁰С | K10: S, м.кв | L10: T, ⁰С | M10: S, м.кв | N10: T, ⁰С | Q10: S, м.кв | R10: T, ⁰С | S10: S, м.кв | T10: T, ⁰С | U10: S, м.кв | V10: T, ⁰С
H11: Стены | I11: =3*3-I12-I14 -> 6.1 | J11: 19.2 | K11: =3*3-K12-K14+3*6 -> 24.1 | L11: 19.2 | M11: =3*3-M12-M14+3*6 -> 24.1 | N11: 19.2 | P11: Стены | Q11: =3*3-Q12-Q14 -> 6.1 | R11: 13.9 | S11: =3*3-S12-S14+3*6 -> 24.1 | T11: 13.9 | U11: =3*3-U12-U14+3*6 -> 24.1 | V11: 13.9
H12: Окна | I12: =1.5*1.7 -> 2.55 | J12: 11.7 | K12: 2.55 | L12: 11.7 | M12: 2.55 | N12: 11.7 | P12: Окна | Q12: =1.5*1.7 -> 2.55 | R12: 8.2 | S12: 2.55 | T12: 8.2 | U12: 2.55 | V12: 8.2
H13: Перекрытие | I13: 0 | J13: 0 | K13: 0 | L13: 0 | M13: 18 | N13: 19.6 | P13: Перекрытие | Q13: 0 | R13: 0 | S13: 0 | T13: 0 | U13: 18 | V13: 15.8
H14: Отопительный прибор | I14: =0.7*0.5 -> 0.35 | J14: 70 | K14: 0.35 | L14: 70 | M14: 0.35 | N14: 70 | P14: Отопительный прибор | Q14: =0.7*0.5 -> 0.35 | R14: 82.5 | S14: 0.35 | T14: 82.5 | U14: 0.35 | V14: 82.5
H15: Пол | I15: 18 | J15: =J16-1 -> 20 | K15: 18 | L15: =L16-1 -> 20 | M15: 18 | N15: =N16-1 -> 20 | P15: Пол | Q15: 18 | R15: =R16-1 -> 20 | S15: 18 | T15: =T16-1 -> 20 | U15: 18 | V15: =V16-1 -> 20
H16: Температура воздуха | J16: 21 | L16: 21 | N16: 21 | P16: Температура воздуха | R16: 21 | T16: 21 | V16: 21
H17: Температура поверхностей | J17: =MROUND((I11*J11+I12*J12+I13*J13+I14*J14+I15*J15)/(I11+I12+I13+I14+I15),0.01) -> 19.68 | L17: =MROUND((K11*L11+K12*L12+K13*L13+K14*L14+K15*L15)/(K11+K12+K13+K14+K15),0.01) -> 19.49 | N17: =MROUND((M11*N11+M12*N12+M13*N13+M14*N14+M15*N15)/(M11+M12+M13+M14+M15),0.01) -> 19.52 | P17: Температура поверхностей | R17: =MROUND((Q11*R11+Q12*R12+Q13*R13+Q14*R14+Q15*R15)/(Q11+Q12+Q13+Q14+Q15),0.01) -> 18.32 | T17: =MROUND((S11*T11+S12*T12+S13*T13+S14*T14+S15*T15)/(S11+S12+S13+S14+S15),0.01) -> 16.55 | V17: =MROUND((U11*V11+U12*V12+U13*V13+U14*V14+U15*V15)/(U11+U12+U13+U14+U15),0.01) -> 16.34
H18: Результирующая температура | J18: =(J16+J17)/2 -> 20.34 | L18: =(L16+L17)/2 -> 20.245 | N18: =(N16+N17)/2 -> 20.26 | P18: Результирующая температура | R18: =(R16+R17)/2 -> 19.66 | T18: =(T16+T17)/2 -> 18.775 | V18: =(V16+V17)/2 -> 18.67
I20: Помещение в середине здания | K20: Угловое помещение с дополнительным окном | M20: Угловое помещение на последнем этаже с дополнительным окном | Q20: Помещение в середине здания | S20: Угловое помещение с дополнительным окном | U20: Угловое помещение на последнем этаже с дополнительным окном
I21: S, м.кв | J21: T, ⁰С | K21: S, м.кв | L21: T, ⁰С | M21: S, м.кв | N21: T, ⁰С | Q21: S, м.кв | R21: T, ⁰С | S21: S, м.кв | T21: T, ⁰С | U21: S, м.кв | V21: T, ⁰С
H22: Стены | I22: =3*3-I23-I25 -> 6.1 | J22: 19.2 | K22: =3*3-K23-K25+3*6 -> 21.55 | L22: 19.2 | M22: =3*3-M23-M25+3*6 -> 24.1 | N22: 19.2 | P22: Стены | Q22: =3*3-Q23-Q25 -> 6.1 | R22: 13.9 | S22: =3*3-S23-S25+3*6 -> 21.55 | T22: 13.9 | U22: =3*3-U23-U25+3*6 -> 24.1 | V22: 13.9
H23: Окна | I23: =1.5*1.7 -> 2.55 | J23: 11.7 | K23: =2.55*2 -> 5.1 | L23: 11.7 | M23: 2.55 | N23: 11.7 | P23: Окна | Q23: =1.5*1.7 -> 2.55 | R23: 7.4 | S23: =2.55*2 -> 5.1 | T23: 7.4 | U23: 2.55 | V23: 7.4
H24: Перекрытие | I24: 0 | J24: 0 | K24: 0 | L24: 0 | M24: 18 | N24: 19.6 | P24: Перекрытие | Q24: 0 | R24: 0 | S24: 0 | T24: 0 | U24: 18 | V24: 15.8
H25: Отопительный прибор | I25: =0.7*0.5 -> 0.35 | J25: 70 | K25: 0.35 | L25: 70 | M25: 0.35 | N25: 70 | P25: Отопительный прибор | Q25: =0.7*0.5 -> 0.35 | R25: 82.5 | S25: 0.35 | T25: 82.5 | U25: 0.35 | V25: 82.5
H26: Пол | I26: 18 | J26: =J27-1 -> 20 | K26: 18 | L26: =L27-1 -> 20 | M26: 18 | N26: =N27-1 -> 20 | P26: Пол | Q26: 18 | R26: =R27-1 -> 20 | S26: 18 | T26: =T27-1 -> 20 | U26: 18 | V26: =V27-1 -> 20
H27: Температура воздуха | J27: 21 | L27: 21 | N27: 21 | P27: Температура воздуха | R27: 21 | T27: 21 | V27: 21
H28: Температура поверхностей | J28: =MROUND((I22*J22+I23*J23+I24*J24+I25*J25+I26*J26)/(I22+I23+I24+I25+I26),0.01) -> 19.68 | L28: =MROUND((K22*L22+K23*L23+K24*L24+K25*L25+K26*L26)/(K22+K23+K24+K25+K26),0.01) -> 19.07 | N28: =MROUND((M22*N22+M23*N23+M24*N24+M25*N25+M26*N26)/(M22+M23+M24+M25+M26),0.01) -> 19.52 | P28: Температура поверхностей | R28: =MROUND((Q22*R22+Q23*R23+Q24*R24+Q25*R25+Q26*R26)/(Q22+Q23+Q24+Q25+Q26),0.01) -> 18.24 | T28: =MROUND((S22*T22+S23*T23+S24*T24+S25*T25+S26*T26)/(S22+S23+S24+S25+S26),0.01) -> 16.14 | V28: =MROUND((U22*V22+U23*V23+U24*V24+U25*V25+U26*V26)/(U22+U23+U24+U25+U26),0.01) -> 16.3
H29: Результирующая температура | J29: =(J27+J28)/2 -> 20.34 | L29: =(L27+L28)/2 -> 20.035 | N29: =(N27+N28)/2 -> 20.26 | P29: Результирующая температура | R29: =(R27+R28)/2 -> 19.62 | T29: =(T27+T28)/2 -> 18.57 | V29: =(V27+V28)/2 -> 18.65
I31: Помещение в середине здания | K31: Угловое помещение с дополнительным окном и дополнительным радиатором | M31: Угловое помещение на последнем этаже с дополнительным окном и дополнительным радиатором | Q31: Помещение в середине здания | S31: Угловое помещение с дополнительным окном и дополнительным радиатором | U31: Угловое помещение на последнем этаже с дополнительным окном и дополнительным радиатором
I32: S, м.кв | J32: T, ⁰С | K32: S, м.кв | L32: T, ⁰С | M32: S, м.кв | N32: T, ⁰С | Q32: S, м.кв | R32: T, ⁰С | S32: S, м.кв | T32: T, ⁰С | U32: S, м.кв | V32: T, ⁰С
H33: Стены | I33: =3*3-I34-I36 -> 6.1 | J33: 19.2 | K33: =3*3-K34-K36+3*6 -> 21.2 | L33: 19.2 | M33: =3*3-M34-M36+3*6 -> 23.75 | N33: 19.2 | P33: Стены | Q33: =3*3-Q34-Q36 -> 6.1 | R33: 13.9 | S33: =3*3-S34-S36+3*6 -> 21.2 | T33: 13.9 | U33: =3*3-U34-U36+3*6 -> 23.75 | V33: 13.9
H34: Окна | I34: =1.5*1.7 -> 2.55 | J34: 11.7 | K34: =2.55*2 -> 5.1 | L34: 11.7 | M34: 2.55 | N34: 11.7 | P34: Окна | Q34: =1.5*1.7 -> 2.55 | R34: 7.4 | S34: =2.55*2 -> 5.1 | T34: 7.4 | U34: 2.55 | V34: 7.4
H35: Перекрытие | I35: 0 | J35: 0 | K35: 0 | L35: 0 | M35: 18 | N35: 19.6 | P35: Перекрытие | Q35: 0 | R35: 0 | S35: 0 | T35: 0 | U35: 18 | V35: 15.8
H36: Отопительный прибор | I36: =0.7*0.5 -> 0.35 | J36: 70 | K36: 0.7 | L36: 70 | M36: 0.7 | N36: 70 | P36: Отопительный прибор | Q36: =0.7*0.5 -> 0.35 | R36: 82.5 | S36: 0.7 | T36: 82.5 | U36: 0.7 | V36: 82.5
H37: Пол | I37: 18 | J37: =J38-1 -> 20 | K37: 18 | L37: =L38-1 -> 20 | M37: 18 | N37: =N38-1 -> 20 | P37: Пол | Q37: 18 | R37: =R38-1 -> 20 | S37: 18 | T37: =T38-1 -> 20 | U37: 18 | V37: =V38-1 -> 20
H38: Температура воздуха | J38: 21 | L38: 21 | N38: 21 | P38: Температура воздуха | R38: 21 | T38: 21 | V38: 21
H39: Температура поверхностей | J39: =MROUND((I33*J33+I34*J34+I35*J35+I36*J36+I37*J37)/(I33+I34+I35+I36+I37),0.01) -> 19.68 | L39: =MROUND((K33*L33+K34*L34+K35*L35+K36*L36+K37*L37)/(K33+K34+K35+K36+K37),0.01) -> 19.46 | N39: =MROUND((M33*N33+M34*N34+M35*N35+M36*N36+M37*N37)/(M33+M34+M35+M36+M37),0.01) -> 19.8 | P39: Температура поверхностей | R39: =MROUND((Q33*R33+Q34*R34+Q35*R35+Q36*R36+Q37*R37)/(Q33+Q34+Q35+Q36+Q37),0.01) -> 18.24 | T39: =MROUND((S33*T33+S34*T34+S35*T35+S36*T36+S37*T37)/(S33+S34+S35+S36+S37),0.01) -> 16.67 | V39: =MROUND((U33*V33+U34*V34+U35*V35+U36*V36+U37*V37)/(U33+U34+U35+U36+U37),0.01) -> 16.68
H40: Результирующая температура | J40: =(J38+J39)/2 -> 20.34 | L40: =(L38+L39)/2 -> 20.23 | N40: =(N38+N39)/2 -> 20.4 | P40: Результирующая температура | R40: =(R38+R39)/2 -> 19.62 | T40: =(T38+T39)/2 -> 18.835 | V40: =(V38+V39)/2 -> 18.84
I42: Помещение в середине здания | K42: Угловое помещение (повышенная температура) | M42: Угловое помещение на последнем этаже повышенная температура | Q42: Помещение в середине здания | S42: Угловое помещение (повышенная температура) | U42: Угловое помещение на последнем этаже повышенная температура
I43: S, м.кв | J43: T, ⁰С | K43: S, м.кв | L43: T, ⁰С | M43: S, м.кв | N43: T, ⁰С | Q43: S, м.кв | R43: T, ⁰С | S43: S, м.кв | T43: T, ⁰С | U43: S, м.кв | V43: T, ⁰С
H44: Стены | I44: =3*3-I45-I47 -> 6.1 | J44: 19.2 | K44: =3*3-K45-K47+3*6 -> 24.1 | L44: 20.1 | M44: =3*3-M45-M47+3*6 -> 24.1 | N44: 20.1 | P44: Стены | Q44: =3*3-Q45-Q47 -> 6.1 | R44: 13.9 | S44: =3*3-S45-S47+3*6 -> 24.1 | T44: 14.8 | U44: =3*3-U45-U47+3*6 -> 24.1 | V44: 14.8
H45: Окна | I45: =1.5*1.7 -> 2.55 | J45: 11.7 | K45: 2.55 | L45: 12.5 | M45: 2.55 | N45: 12.5 | P45: Окна | Q45: =1.5*1.7 -> 2.55 | R45: 7.4 | S45: 2.55 | T45: 8.2 | U45: 2.55 | V45: 8.2
H46: Перекрытие | I46: 0 | J46: 0 | K46: 0 | L46: 0 | M46: 18 | N46: 20.6 | P46: Перекрытие | Q46: 0 | R46: 0 | S46: 0 | T46: 0 | U46: 18 | V46: 16.7
H47: Отопительный прибор | I47: =0.7*0.5 -> 0.35 | J47: 70 | K47: 0.35 | L47: 70 | M47: 0.35 | N47: 70 | P47: Отопительный прибор | Q47: =0.7*0.5 -> 0.35 | R47: 82.5 | S47: 0.35 | T47: 82.5 | U47: 0.35 | V47: 82.5
H48: Пол | I48: 18 | J48: =J49-1 -> 20 | K48: 18 | L48: =L49-1 -> 21 | M48: 18 | N48: =N49-1 -> 21 | P48: Пол | Q48: 18 | R48: =R49-1 -> 20 | S48: 18 | T48: =T49-1 -> 21 | U48: 18 | V48: =V49-1 -> 21
H49: Температура воздуха | J49: 21 | L49: 22 | N49: 22 | P49: Температура воздуха | R49: 21 | T49: 22 | V49: 22
H50: Температура поверхностей | J50: =MROUND((I44*J44+I45*J45+I46*J46+I47*J47+I48*J48)/(I44+I45+I46+I47+I48),0.01) -> 19.68 | L50: =MROUND((K44*L44+K45*L45+K46*L46+K47*L47+K48*L48)/(K44+K45+K46+K47+K48),0.01) -> 20.42 | N50: =MROUND((M44*N44+M45*N45+M46*N46+M47*N47+M48*N48)/(M44+M45+M46+M47+M48),0.01) -> 20.47 | P50: Температура поверхностей | R50: =MROUND((Q44*R44+Q45*R45+Q46*R46+Q47*R47+Q48*R48)/(Q44+Q45+Q46+Q47+Q48),0.01) -> 18.24 | T50: =MROUND((S44*T44+S45*T45+S46*T46+S47*T47+S48*T48)/(S44+S45+S46+S47+S48),0.01) -> 17.43 | V50: =MROUND((U44*V44+U45*V45+U46*V46+U47*V47+U48*V48)/(U44+U45+U46+U47+U48),0.01) -> 17.22
H51: Результирующая температура | J51: =(J49+J50)/2 -> 20.34 | L51: =(L49+L50)/2 -> 21.21 | N51: =(N49+N50)/2 -> 21.235 | P51: Результирующая температура | R51: =(R49+R50)/2 -> 19.62 | T51: =(T49+T50)/2 -> 19.715 | V51: =(V49+V50)/2 -> 19.61
I53: Помещение в середине здания | K53: Угловое помещение (повышенная температура)+ дополнительный радиатор | M53: Угловое помещение на последнем этаже повышенная температура + дополнительный радиатор | Q53: Помещение в середине здания | S53: Угловое помещение (повышенная температура)+ дополнительный радиатор | U53: Угловое помещение на последнем этаже повышенная температура + дополнительный радиатор
I54: S, м.кв | J54: T, ⁰С | K54: S, м.кв | L54: T, ⁰С | M54: S, м.кв | N54: T, ⁰С | Q54: S, м.кв | R54: T, ⁰С | S54: S, м.кв | T54: T, ⁰С | U54: S, м.кв | V54: T, ⁰С
H55: Стены | I55: =3*3-I56-I58 -> 6.1 | J55: 19.2 | K55: =3*3-K56-K58+3*6 -> 23.75 | L55: 20.1 | M55: =3*3-M56-M58+3*6 -> 23.75 | N55: 20.1 | P55: Стены | Q55: =3*3-Q56-Q58 -> 6.1 | R55: 13.9 | S55: =3*3-S56-S58+3*6 -> 23.75 | T55: 14.8 | U55: =3*3-U56-U58+3*6 -> 23.75 | V55: 14.8
H56: Окна | I56: =1.5*1.7 -> 2.55 | J56: 11.7 | K56: 2.55 | L56: 12.5 | M56: 2.55 | N56: 12.5 | P56: Окна | Q56: =1.5*1.7 -> 2.55 | R56: 7.4 | S56: 2.55 | T56: 8.2 | U56: 2.55 | V56: 8.2
H57: Перекрытие | I57: 0 | J57: 0 | K57: 0 | L57: 0 | M57: 18 | N57: 20.6 | P57: Перекрытие | Q57: 0 | R57: 0 | S57: 0 | T57: 0 | U57: 18 | V57: 16.7
H58: Отопительный прибор | I58: =0.7*0.5 -> 0.35 | J58: 70 | K58: 0.7 | L58: 70 | M58: 0.7 | N58: 70 | P58: Отопительный прибор | Q58: =0.7*0.5 -> 0.35 | R58: 82.5 | S58: 0.7 | T58: 82.5 | U58: 0.7 | V58: 82.5
H59: Пол | I59: 18 | J59: =J60-1 -> 20 | K59: 18 | L59: =L60-1 -> 21 | M59: 18 | N59: =N60-1 -> 21 | P59: Пол | Q59: 18 | R59: =R60-1 -> 20 | S59: 18 | T59: =T60-1 -> 21 | U59: 18 | V59: =V60-1 -> 21
H60: Температура воздуха | J60: 21 | L60: 22 | N60: 22 | P60: Температура воздуха | R60: 21 | T60: 22 | V60: 22
H61: Температура поверхностей | J61: =MROUND((I55*J55+I56*J56+I57*J57+I58*J58+I59*J59)/(I55+I56+I57+I58+I59),0.01) -> 19.68 | L61: =MROUND((K55*L55+K56*L56+K57*L57+K58*L58+K59*L59)/(K55+K56+K57+K58+K59),0.01) -> 20.81 | N61: =MROUND((M55*N55+M56*N56+M57*N57+M58*N58+M59*N59)/(M55+M56+M57+M58+M59),0.01) -> 20.75 | P61: Температура поверхностей | R61: =MROUND((Q55*R55+Q56*R56+Q57*R57+Q58*R58+Q59*R59)/(Q55+Q56+Q57+Q58+Q59),0.01) -> 18.24 | T61: =MROUND((S55*T55+S56*T56+S57*T57+S58*T58+S59*T59)/(S55+S56+S57+S58+S59),0.01) -> 17.96 | V61: =MROUND((U55*V55+U56*V56+U57*V57+U58*V58+U59*V59)/(U55+U56+U57+U58+U59),0.01) -> 17.6
H62: Результирующая температура | J62: =(J60+J61)/2 -> 20.34 | L62: =(L60+L61)/2 -> 21.405 | N62: =(N60+N61)/2 -> 21.375 | P62: Результирующая температура | R62: =(R60+R61)/2 -> 19.62 | T62: =(T60+T61)/2 -> 19.98 | V62: =(V60+V61)/2 -> 19.8

Sheet Лист2

Sheet Лист3
